bitfinex-derivatives/quotes_ETHF0:USTF0_20250102
["timestamp","ask_amount","ask_price","bid_price","bid_amount"]
[1735832655417,0.2892,3461.1,3461.0,0.28919]
[1735832656014,0.2892,3461.0,3460.9,10.09044828]
[1735832656215,3.2078,3461.7,3460.9,10.09044828]
[1735832656216,0.2892,3461.1,3461.0,0.2892]
[1735832656611,0.28919,3461.3,3461.2,0.28918]
[1735832656918,3.49695,3461.7,3461.6,0.28915]
[1735832657216,0.28917,3461.5,3461.4,0.28916]
[1735832657810,0.28915,3461.8,3461.7,0.28913]
[1735832658218,3.40233564,3462.0,3461.9,0.28913]
[1735832658614,3.40233564,3462.0,3461.9,2.34328635]
[1735832658819,3.2078,3462.3,3461.9,2.05415635]
[1735832659016,3.40233564,3462.6,3462.5,0.28908]
[1735832659222,3.69140564,3462.6,3462.5,0.28908]
[1735832660018,3.40233564,3462.6,3462.5,0.28908]
[1735832660223,3.69140564,3462.6,3462.5,0.28908]
[1735832660417,0.28907,3462.6,3462.5,0.28908]
[1735832661117,3.2078,3462.8,3462.2,5.40550115]
[1735832661724,0.28909,3462.4,3462.3,0.28909]
[1735832661924,3.2078,3462.8,3462.4,0.28908]
[1735832661925,0.28908,3462.5,3462.4,0.28908]
[1735832662223,0.28909,3462.5,3462.4,0.28908]
[1735832662424,0.28909,3462.4,3462.3,0.28909]
[1735832662612,3.2078,3462.8,3462.2,5.40550115]
[1735832662817,0.28909,3462.4,3462.3,0.28909]
[1735832663628,3.2078,3462.8,3462.2,5.40550115]
[1735832663829,0.28908,3462.5,3462.4,0.28908]
[1735832665925,0.28907,3462.6,3462.5,0.28907]
[1735832666225,0.28909,3462.5,3462.4,0.28908]
[1735832667223,0.72259,3463.1,3462.2,5.40550115]
[1735832667424,0.28905,3462.8,3462.3,0.72274]
[1735832667620,0.28905,3462.9,3462.8,0.28905]
[1735832667823,6.61013564,3463.3,3462.2,5.40550115]
[1735832668122,0.28907,3462.6,3462.5,0.28907]
[1735832668330,0.28905,3462.9,3462.8,0.28905]
[1735832668631,0.28902,3463.2,3462.7,0.28906]
[1735832668929,0.28905,3462.8,3462.7,0.28906]
[1735832669132,3.2078,3463.3,3462.6,3.2078]
[1735832669320,3.2078,3463.3,3462.7,0.8441]
[1735832669627,0.28904,3462.9,3462.8,0.28905]
[1735832669829,0.28905,3462.9,3462.7,1.13316]
[1735832670529,0.28905,3462.9,3462.4,4.53510115]
[1735832670530,0.72256,3463.2,3462.4,4.53510115]
[1735832670729,0.28905,3462.8,3462.7,0.28905]
[1735832672230,0.28908,3462.5,3462.4,4.82418115]
[1735832672425,0.28908,3462.6,3462.5,0.28908]
[1735832672629,0.28905,3462.9,3462.8,0.28905]
[1735832672829,0.72256,3463.2,3462.4,4.53510115]
[1735832673325,0.72256,3463.2,3462.5,0.28907]
[1735832673326,0.28907,3462.6,3462.5,0.28907]
[1735832673527,3.2078,3462.9,3462.4,4.53510115]
[1735832673829,0.28908,3462.5,3462.4,4.82419115]
[1735832674527,0.28908,3462.5,3462.4,0.28909]
[1735832674722,0.28909,3462.4,3462.3,1.16389]
[1735832675129,0.28908,3462.5,3462.4,0.28908]
[1735832675526,3.2078,3462.7,3462.3,0.8748]
[1735832675727,3.93048,3462.7,3462.2,3.2078]
[1735832676031,0.28909,3462.3,3462.2,3.2078]
[1735832676234,3.2078,3462.7,3462.2,3.2078]
[1735832676430,0.28909,3462.4,3462.3,0.28909]
[1735832676629,0.28909,3462.3,3462.2,3.4969]
[1735832676827,3.2078,3462.7,3462.2,3.2078]
[1735832677027,0.28909,3462.4,3462.3,0.28909]
[1735832677841,0.28909,3462.5,3462.4,0.28908]
[1735832679129,0.28908,3462.5,3462.4,0.28907]
[1735832680236,3.2078,3462.7,3462.2,3.2078]
[1735832680536,3.2078,3462.7,3462.6,0.28907]
[1735832680929,2.55562744,3463.1,3463.0,0.28904]
[1735832681232,2.26659744,3463.1,3463.0,0.28904]
[1735832681730,3.40233564,3463.2,3463.1,0.28903]
[1735832682242,3.14364752,3463.4,3463.3,0.28901]
[1735832682428,5.6705594,3463.6,3463.3,7.34174547]
[1735832682633,5.6705594,3463.6,3463.5,3.49679]
[1735832682940,0.28894,3464.2,3463.6,0.72246]
[1735832683131,0.28894,3464.2,3463.5,3.2078]
[1735832683132,0.28895,3464.1,3463.9,0.28896]
[1735832683439,0.28895,3464.1,3463.5,5.26053547]
[1735832683440,3.2078,3464.2,3463.7,0.28897]
[1735832683626,0.28897,3463.9,3463.5,5.26053547]
[1735832683829,0.28897,3463.9,3463.7,0.28897]
[1735832684041,3.2078,3464.2,3463.5,5.26053547]
[1735832684241,3.2078,3464.2,3463.5,3.2078]
[1735832684435,0.28899,3463.6,3463.5,10.01672289]
[1735832685133,0.28899,3463.6,3463.5,10.30571289]
[1735832685743,0.28898,3463.7,3463.5,8.0213674]
[1735832685936,0.9107,3463.9,3463.5,4.5245774]
[1735832686336,0.8444,3464.0,3463.9,0.28896]
[1735832686539,3.2078,3464.2,3463.5,9.78511287]
[1735832686540,3.2078,3464.2,3464.1,0.28894]
[1735832687038,3.2078,3464.6,3464.5,0.28891]
[1735832687244,0.8517,3464.9,3464.7,0.28889]
[1735832687436,0.8517,3464.9,3464.2,0.9183]
[1735832687745,3.2078,3465.0,3464.9,0.28888]
[1735832688035,4.9777,3465.4,3464.7,2.05273547]
[1735832688240,4.9777,3465.4,3464.8,0.8978]
[1735832688442,4.9777,3465.4,3465.1,0.28885]
[1735832688641,3.2078,3465.4,3464.8,0.8978]
[1735832688839,3.2078,3465.4,3465.1,0.28885]
[1735832689037,3.2078,3465.4,3464.9,3.2078]
[1735832689440,3.2078,3465.4,3465.2,0.28885]
[1735832689643,3.2078,3465.4,3464.9,3.2078]
[1735832690036,3.2078,3465.4,3465.2,0.28885]
[1735832690346,3.2078,3465.4,3465.2,0.28698897]
[1735832690641,0.28885,3465.2,3465.0,0.28887]
[1735832690938,2.93223547,3465.3,3464.5,7.7323774]
[1735832691143,0.28889,3464.8,3464.5,8.0212874]
[1735832691539,0.28889,3464.8,3464.6,0.2889]
[1735832691840,0.2889,3464.7,3464.5,8.0212874]
[1735832692044,0.2889,3464.7,3464.5,3.49671]
[1735832692236,0.8778,3464.9,3464.5,3.2078]
[1735832692633,0.8778,3464.9,3464.7,0.28889]
[1735832692834,0.8778,3464.9,3464.5,3.2078]
[1735832693038,0.28889,3464.8,3464.6,0.2889]
[1735832693241,0.8778,3464.9,3464.5,3.2078]
[1735832693434,0.2889,3464.6,3464.5,3.2078]
[1735832694735,2.05273547,3464.7,3464.0,0.28895]
[1735832694736,0.28894,3464.3,3464.0,0.28895]
[1735832694942,0.28893,3464.4,3463.8,0.28897]
[1735832695140,1.7245,3464.5,3464.4,0.28892]
[1735832695345,1.7245,3464.5,3463.9,3.2078]
[1735832695849,0.8412,3464.5,3464.4,0.28892]
[1735832697340,1.13011,3464.5,3464.4,0.28892]
[1735832697542,0.28892,3464.4,3464.3,0.28892]
[1735832697844,0.8412,3464.5,3464.4,0.28892]
[1735832698043,0.8412,3464.5,3463.9,3.2078]
[1735832698346,0.28894,3464.2,3464.0,0.28895]
[1735832698644,0.8412,3464.5,3463.9,3.2078]
[1735832698947,0.28894,3464.2,3464.0,0.28895]
[1735832699348,0.28894,3464.1,3464.0,0.28895]
[1735832699553,0.28895,3464.0,3463.9,3.49676]
[1735832699749,0.8412,3464.5,3463.9,3.2078]
[1735832700046,0.28895,3464.1,3464.0,0.28895]
[1735832700248,0.28897,3463.8,3463.7,1.19597]
[1735832700546,3.2078,3463.8,3463.3,4.5245774]
[1735832700842,3.4968,3463.4,3463.3,4.5245774]
[1735832701349,3.2078,3464.2,3463.3,6.57731287]
[1735832701648,0.289,3463.4,3463.3,4.5245774]
[1735832702044,0.8594,3463.6,3463.1,2.05273547]
[1735832702242,3.2078,3464.1,3463.4,2.05273547]
[1735832702443,3.2078,3464.1,3464.0,0.28895]
[1735832702638,0.8594,3464.2,3463.8,0.28897]
[1735832702847,0.28896,3464.0,3463.4,2.05273547]
[1735832703047,0.8594,3464.2,3463.8,0.28896]
[1735832703247,0.8594,3464.2,3463.4,2.05273547]
[1735832703448,0.28896,3464.0,3463.8,0.28896]
[1735832703648,0.28895,3464.1,3464.0,0.28895]
[1735832703950,0.8594,3464.2,3464.1,0.28894]
[1735832704145,3.49671,3464.6,3464.1,2.05273547]
[1735832704352,3.49671,3464.6,3464.0,2.45093653]
[1735832704353,3.2078,3464.6,3464.0,2.45093653]
[1735832704645,3.2078,3464.6,3463.9,0.72241]
[1735832704845,0.28892,3464.5,3464.3,0.28892]
[1735832705040,3.2078,3464.6,3463.9,0.72241]
[1735832705241,3.4967,3464.6,3464.4,0.28892]
[1735832705451,0.28891,3464.5,3464.3,0.28892]
[1735832706149,3.2078,3464.6,3464.5,0.28891]
[1735832707549,0.28891,3464.5,3464.0,3.2078]
[1735832707744,0.28892,3464.4,3464.2,0.28893]
[1735832707946,0.28894,3464.1,3464.0,3.2078]
[1735832708250,0.28893,3464.3,3464.1,0.28894]
[1735832708454,4.0723,3464.6,3464.5,0.28891]
[1735832710055,4.0723,3464.6,3464.1,0.9113]
[1735832710255,0.28891,3464.5,3464.3,0.28892]
[1735832710751,0.28892,3464.4,3464.2,0.28893]
[1735832710947,0.28893,3464.3,3464.2,0.28894]
[1735832712152,4.0723,3464.6,3463.6,7.7323774]
[1735832712455,0.8408,3464.2,3463.6,7.7323774]
[1735832712845,0.8408,3464.2,3464.1,0.28894]
[1735832713049,0.28892,3464.4,3464.3,0.28893]
[1735832713250,0.28894,3464.3,3464.2,0.28893]
[1735832713653,0.8645,3464.6,3464.0,3.2078]
[1735832714156,0.891,3464.8,3464.0,3.2078]
[1735832714353,0.891,3464.8,3464.7,0.28889]
[1735832714551,0.891,3464.8,3464.1,1.341]
[1735832715251,0.891,3464.8,3464.0,3.2078]
[1735832715760,0.28894,3464.2,3464.1,0.28894]
[1735832715949,0.891,3464.8,3464.0,3.2078]
[1735832716259,0.28893,3464.3,3464.2,0.28893]
[1735832716450,3.2078,3464.6,3464.0,3.2078]
[1735832716648,0.28894,3464.2,3464.1,0.28893]
[1735832717054,0.891,3464.8,3464.0,3.2078]
[1735832717360,0.891,3464.8,3464.1,0.72237]
[1735832717857,0.28892,3464.5,3464.4,0.28892]
[1735832718062,0.891,3464.8,3464.0,3.2078]
[1735832718252,0.891,3464.8,3463.6,7.69797393]
[1735832718253,3.2078,3464.4,3463.6,7.7323774]
[1735832718558,0.28898,3463.7,3463.6,4.5245774]
[1735832718951,0.28898,3463.7,3463.6,4.8135674]
[1735832719254,1.7802,3463.9,3463.8,0.28897]
[1735832719453,1.7802,3463.9,3463.3,5.2471074]
[1735832719454,0.8924,3464.2,3464.1,0.28894]
[1735832719653,4.1002,3464.2,3463.7,3.2078]
[1735832719854,0.28897,3463.8,3463.7,3.2078]
[1735832720058,4.1002,3464.2,3463.7,3.2078]
[1735832720250,0.8924,3464.2,3464.1,0.28894]
[1735832720456,0.8924,3464.2,3463.3,5.4362774]
[1735832720457,0.28898,3463.7,3463.4,0.289]
[1735832720655,0.289,3463.5,3463.4,0.289]
[1735832720957,0.28899,3463.7,3463.6,0.28899]
[1735832721158,0.28899,3463.6,3463.5,0.28899]
[1735832721362,0.289,3463.5,3463.4,0.289]
[1735832721860,0.28899,3463.6,3463.5,0.28899]
[1735832722355,0.8419,3463.9,3463.3,3.2078]
[1735832722552,0.289,3463.4,3463.3,3.2078]
[1735832724952,3.2078,3463.7,3463.0,4.5245774]
[1735832725152,0.28903,3463.1,3463.0,4.5245774]
[1735832725561,3.49683,3463.1,3463.0,4.5245774]
[1735832725762,0.28903,3463.1,3463.0,4.5245774]
[1735832727055,0.28904,3463.0,3462.9,6.80892289]
[1735832727255,0.28904,3463.0,3462.9,2.96102194]
[1735832727456,0.28907,3462.6,3462.5,2.96102194]
[1735832727658,3.49687,3462.6,3462.5,2.96102194]
[1735832728765,5.25990959,3462.6,3461.7,0.9013]
[1735832728963,0.28913,3461.9,3461.7,1.19044]
[1735832729162,0.28908,3462.5,3461.5,0.28915]
[1735832729362,3.2078,3461.9,3461.4,9.08132875]
[1735832729562,3.49696,3461.5,3461.4,9.08132875]
[1735832730068,0.2892,3461.1,3461.0,9.08132875]
[1735832730464,3.497,3461.1,3461.0,9.08132875]
[1735832730869,3.2078,3461.1,3461.0,9.08132875]
[1735832731171,3.2078,3461.1,3461.0,9.37052875]
[1735832731571,3.2078,3461.1,3460.6,2.05210959]
[1735832731772,0.2892,3461.1,3460.8,0.28921]
[1735832732271,3.2078,3461.6,3460.9,2.05210959]
[1735832732474,0.28917,3461.4,3461.1,0.2892]
[1735832732675,3.2078,3461.6,3461.1,0.28919]
[1735832732873,3.2078,3461.6,3461.0,0.9225]
[1735832733068,3.49695,3461.6,3461.3,0.28917]
[1735832733372,0.28917,3461.4,3461.1,0.2892]
[1735832733564,3.2078,3461.6,3461.0,0.9225]
[1735832734578,0.28917,3461.4,3461.1,0.28919]
[1735832735076,0.28918,3461.3,3461.1,0.28919]
[1735832735272,0.9143,3461.9,3461.0,0.9225]
[1735832735479,0.28915,3461.7,3461.5,0.28916]
[1735832735874,0.9143,3461.9,3461.1,0.9177]
[1735832736075,0.9143,3461.9,3461.7,0.28914]
[1735832736273,3.2078,3462.0,3461.3,3.2078]
[1735832736474,3.2078,3462.0,3461.5,2.05210959]
[1735832736784,3.2078,3462.0,3461.9,0.28913]
[1735832737180,0.28911,3462.1,3461.9,0.28912]
[1735832737479,3.2078,3462.5,3462.4,0.28909]
[1735832738179,3.2078,3462.5,3462.2,0.2891]
[1735832738478,3.2078,3462.5,3461.8,3.30530831]
[1735832738678,3.2078,3462.5,3461.8,8.30530831]
[1735832738980,0.28907,3462.6,3462.3,0.28909]
[1735832739177,0.8394,3463.0,3462.1,3.2078]
[1735832739372,0.28907,3462.6,3462.4,0.28909]
[1735832739575,0.28904,3462.9,3462.4,0.28908]
[1735832739779,0.8394,3463.0,3462.4,0.28908]
[1735832740078,0.8394,3463.0,3462.2,0.9104]
[1735832740380,0.28906,3462.7,3462.5,0.28907]
[1735832740582,0.8394,3463.0,3462.2,3.36450831]
[1735832740777,0.8812,3463.4,3462.9,3.2078]
[1735832741073,1.17796,3464.0,3463.8,0.28896]
[1735832741268,0.889,3464.0,3463.9,0.28896]
[1735832741469,1.59976,3464.7,3463.7,3.2078]
[1735832741470,5.39342814,3464.7,3463.7,3.2078]
[1735832741678,0.28893,3464.3,3463.7,3.2078]
[1735832741875,0.28892,3464.4,3463.7,3.2078]
[1735832742071,0.28891,3464.6,3464.4,0.28891]
[1735832742275,0.28891,3464.6,3463.8,0.72243]
[1735832742276,4.51592814,3464.7,3464.6,0.2889]
[1735832742475,4.51592814,3464.7,3464.1,3.2078]
[1735832742674,4.51592814,3464.7,3464.2,0.8935]
[1735832742871,4.51592814,3464.7,3464.6,0.2889]
[1735832743172,0.28885,3465.2,3464.9,0.28887]
[1735832743373,3.2078,3465.6,3464.7,2.45410831]
[1735832743573,3.2078,3465.6,3465.5,0.28883]
[1735832744577,0.2888,3465.9,3465.1,2.45410831]
[1735832744779,3.2078,3466.2,3465.3,3.2078]
[1735832744977,0.28878,3466.1,3465.3,3.2078]
[1735832745284,3.2078,3466.2,3465.5,2.45410831]
[1735832745481,0.28878,3466.1,3465.5,2.45410831]
[1735832745680,1.7798,3466.8,3465.5,2.45410831]
[1735832745681,0.28879,3466.0,3465.5,2.45410831]
[1735832745886,0.28879,3466.0,3465.6,0.28882]
[1735832746080,0.2888,3465.9,3465.5,2.74292831]
[1735832746278,0.2888,3465.9,3465.6,0.28882]
[1735832746576,3.2078,3466.6,3465.6,0.28882]
[1735832746782,0.28879,3466.0,3465.6,0.28882]
[1735832747083,0.28875,3466.5,3465.9,2.45410831]
[1735832747277,0.28874,3466.5,3466.1,0.28878]
[1735832747477,3.2078,3466.6,3465.5,2.45410831]
[1735832747780,0.28877,3466.2,3465.8,0.2888]
[1735832747983,0.28878,3466.1,3465.7,0.28881]
[1735832748184,0.28879,3466.0,3465.6,0.28882]
[1735832748383,10.66190831,3466.6,3465.4,0.8581]
[1735832748680,0.28882,3465.6,3465.3,3.2078]
[1735832748881,5.66190831,3466.2,3465.3,3.2078]
[1735832749079,0.28884,3465.4,3465.3,3.2078]
[1735832749279,5.66190831,3466.2,3465.3,3.2078]
[1735832749584,3.2078,3466.2,3465.3,3.2078]
[1735832749984,0.28882,3465.7,3465.3,3.49664]
[1735832750185,0.28882,3465.7,3464.8,2.2688]
[1735832750186,0.28888,3465.0,3464.8,4.1366]
[1735832750387,0.28888,3464.9,3464.8,3.2078]
[1735832750574,0.28886,3465.1,3464.8,3.2078]
[1735832751084,0.28888,3464.9,3464.5,0.28891]
[1735832751286,0.28885,3465.3,3464.4,0.28891]
[1735832751488,0.28889,3464.9,3464.5,0.28891]
[1735832751681,0.28892,3464.5,3464.1,0.28894]
[1735832751882,0.28893,3464.3,3464.0,0.9146]
[1735832752087,0.28895,3464.0,3463.9,3.2078]
[1735832752286,0.28895,3464.1,3463.9,3.2078]
[1735832752689,4.0905,3464.6,3463.7,0.9186]
[1735832752888,0.28897,3463.8,3463.5,3.49679]
[1735832753186,0.28896,3463.9,3463.6,0.28898]
[1735832753483,0.28893,3464.4,3464.1,0.28894]
[1735832753684,4.0905,3464.6,3464.1,0.28894]
[1735832753884,4.0905,3464.6,3463.9,5.66190831]
[1735832753885,3.2078,3464.6,3463.9,5.66190831]
[1735832754089,3.4967,3464.6,3463.9,5.66190831]
[1735832754389,0.28892,3464.5,3464.1,0.28894]
[1735832754578,0.28892,3464.5,3464.2,0.28893]
[1735832754784,0.28888,3464.9,3464.5,0.2889]
[1735832755183,0.28888,3464.9,3464.5,0.28891]
[1735832755584,0.28888,3465.0,3464.7,0.28889]
[1735832755892,4.0528,3465.4,3464.3,5.66190831]
[1735832756090,0.28887,3465.0,3464.7,0.28889]
[1735832756285,0.28887,3465.1,3464.8,0.28888]
[1735832756590,0.28887,3465.0,3464.7,0.28889]
[1735832757384,0.28888,3464.9,3464.6,0.2889]
[1735832757878,0.28889,3464.8,3464.5,0.28891]
[1735832758081,0.28889,3464.8,3464.6,0.2889]
[1735832758283,4.77491,3465.4,3464.4,0.8538]
[1735832758284,4.0528,3465.4,3464.4,0.8538]
[1735832758491,0.2889,3464.7,3464.5,0.28891]
[1735832758886,0.2889,3464.6,3464.4,0.8538]
[1735832759079,6.50690831,3465.4,3464.3,3.2078]
[1735832759284,0.28892,3464.4,3464.3,3.2078]
[1735832759684,0.72214,3465.2,3464.3,3.2078]
[1735832759891,7.22900831,3465.4,3464.3,3.2078]
[1735832760090,1.01097,3465.3,3464.6,0.2889]
[1735832760385,0.2889,3464.6,3464.4,0.28891]
[1735832760590,6.50690831,3465.4,3464.3,3.2078]
[1735832760785,4.0528,3465.4,3464.3,5.66190831]
[1735832760992,4.0528,3465.4,3464.8,0.28888]
[1735832761195,0.28886,3465.2,3464.9,0.28887]
[1735832761403,3.2078,3465.8,3464.7,7.00190831]
[1735832761696,3.2078,3465.8,3464.8,2.52452]
[1735832761884,0.28882,3465.7,3465.4,0.28883]
[1735832762085,0.28882,3465.7,3465.5,0.28882]
[1735832762694,1.60433,3466.2,3465.3,3.2078]
[1735832762695,0.8824,3466.2,3465.4,0.28884]
[1735832762994,0.28879,3466.0,3465.8,0.2888]
[1735832763295,0.8824,3466.2,3465.3,3.2078]
[1735832763591,0.28883,3465.5,3465.3,3.49664]
[1735832763985,3.2078,3465.9,3465.3,3.2078]
[1735832763986,0.28884,3465.4,3465.3,3.2078]
[1735832764187,3.2078,3465.9,3465.3,3.2078]
[1735832764389,0.28884,3465.4,3465.3,3.2078]
[1735832765188,0.28881,3465.7,3465.3,3.2078]
[1735832765387,0.8824,3466.2,3465.3,3.2078]
[1735832765587,0.2888,3465.9,3465.4,0.28884]
[1735832765791,0.2888,3465.9,3465.6,0.28881]
[1735832766096,0.8824,3466.2,3465.3,3.2078]
[1735832766595,0.28884,3465.4,3465.3,3.2078]
[1735832767097,0.28884,3465.4,3465.1,0.28886]
[1735832767298,0.28884,3465.4,3464.8,1.8023]
[1735832767299,3.2078,3465.5,3464.8,1.8023]
[1735832767496,0.28887,3465.1,3464.9,0.28887]
[1735832767790,3.2078,3465.1,3464.3,2.45410831]
[1735832767991,0.28892,3464.4,3464.2,3.2078]
[1735832768292,0.28893,3464.3,3464.2,3.2078]
[1735832770100,0.72229,3464.5,3463.8,0.28897]
[1735832770290,0.72229,3464.5,3463.7,0.28898]
[1735832770496,0.28897,3463.8,3463.7,0.28898]
[1735832770696,0.28896,3463.9,3463.5,5.66190831]
[1735832770895,0.28896,3463.9,3463.6,0.28899]
[1735832771196,0.28896,3463.9,3463.7,0.28897]
[1735832771499,0.28896,3464.0,3463.5,5.66190831]
[1735832771698,0.28896,3463.9,3463.8,0.28897]
[1735832771901,0.72218,3465.0,3463.6,1.01146]
[1735832772092,0.28892,3464.5,3464.4,0.28892]
[1735832772293,0.28892,3464.4,3464.3,0.28892]
[1735832772595,0.7222,3465.0,3464.0,5.66190831]
[1735832772791,3.2078,3465.1,3464.6,0.2889]
[1735832772991,0.2889,3464.6,3464.1,1.7897]
[1735832773187,0.2889,3464.7,3464.6,0.2889]
[1735832773392,3.2078,3465.1,3464.4,3.2078]
[1735832773586,0.28889,3464.9,3464.7,0.28889]
[1735832774298,0.9129,3465.2,3464.4,3.2078]
[1735832774494,0.9129,3465.2,3464.8,0.28888]
[1735832774701,0.28888,3464.9,3464.7,0.28889]
[1735832774898,0.28888,3464.9,3464.4,5.66190831]
[1735832775094,3.2078,3465.1,3464.4,3.2078]
[1735832775296,3.2078,3465.1,3464.2,0.8335]
[1735832775497,0.28889,3464.8,3464.6,0.2889]
[1735832775695,3.2078,3465.1,3464.1,1.7897]
[1735832775900,0.2889,3464.7,3464.6,0.2889]
[1735832776200,0.28891,3464.6,3464.4,0.28891]
[1735832776404,0.72218,3465.0,3464.1,1.7897]
[1735832776600,0.28888,3464.9,3464.7,0.28889]
[1735832777097,0.28887,3465.0,3464.4,3.2078]
[1735832777292,0.9129,3465.2,3464.4,3.2078]
[1735832777293,0.9129,3465.2,3464.5,0.72229]
[1735832777492,0.28885,3465.3,3465.1,0.28886]
[1735832777694,0.28884,3465.3,3465.1,0.28886]
[1735832777894,3.2078,3465.5,3464.5,1.61989]
[1735832778203,3.2078,3465.5,3464.8,5.66190831]
[1735832778401,0.8776,3465.8,3464.8,5.66190831]
[1735832778705,0.28883,3465.6,3465.4,0.28883]
[1735832778890,0.28883,3465.6,3465.5,0.28883]
[1735832779093,0.8776,3465.8,3464.9,1.565]
[1735832779299,0.8776,3465.8,3465.3,3.2078]
[1735832779499,0.8776,3465.8,3465.5,0.28883]
[1735832779695,0.28882,3465.7,3465.5,0.28883]
[1735832780097,0.28882,3465.6,3465.4,0.28883]
[1735832780296,0.8776,3465.8,3465.5,0.28883]
[1735832780495,1.16641,3465.8,3465.6,0.28882]
[1735832780703,0.8776,3465.8,3465.4,0.28883]
[1735832780900,0.8776,3465.8,3465.3,3.2078]
[1735832781102,1.16641,3465.8,3465.6,0.28882]
[1735832781402,0.28882,3465.7,3465.5,0.28882]
[1735832781598,0.28882,3465.7,3465.3,3.2078]
[1735832781599,0.28884,3465.4,3465.3,3.2078]
[1735832782601,0.28884,3465.4,3465.3,3.49664]
[1735832782803,0.28884,3465.4,3465.3,3.2078]
[1735832783605,0.72208,3465.5,3464.9,0.28887]
[1735832783808,0.8446,3465.4,3464.8,3.2078]
[1735832783995,0.28886,3465.2,3465.1,0.28886]
[1735832784910,0.8446,3465.4,3465.0,0.28887]
[1735832785198,0.28886,3465.2,3465.0,0.28887]
[1735832785398,0.28886,3465.2,3464.8,5.66190831]
[1735832785593,0.8446,3465.4,3464.8,5.66190831]
[1735832785806,0.28882,3465.7,3465.5,0.28882]
[1735832786002,0.28882,3465.7,3465.2,6.55580831]
[1735832786200,3.49659,3466.0,3465.4,0.28884]
[1735832786401,3.49659,3466.0,3465.3,0.8837]
[1735832786402,3.2078,3466.0,3465.3,0.8837]
[1735832786602,0.28879,3465.9,3465.6,0.28881]
[1735832786801,3.2078,3466.0,3465.3,0.8837]
[1735832787109,0.28882,3465.7,3465.5,0.28882]
[1735832787301,0.28882,3465.7,3465.6,0.28882]
[1735832787608,0.28883,3465.5,3465.4,0.28883]
[1735832788411,0.28884,3465.3,3465.2,6.79331193]
[1735832789099,1.8261,3465.6,3465.2,6.79331193]
[1735832789302,0.28884,3465.3,3465.2,6.79331193]
[1735832789501,1.8261,3465.6,3464.9,0.28888]
[1735832789702,0.28887,3465.0,3464.9,0.28888]
[1735832789903,0.28887,3465.1,3465.0,0.28887]
[1735832790096,3.3784516,3466.3,3464.8,12.45522024]
[1735832790296,0.28882,3465.6,3465.5,0.28882]
[1735832790703,0.28882,3465.7,3465.6,0.28881]
[1735832791103,0.28881,3465.7,3465.6,0.28882]
[1735832791403,1.63875,3466.2,3465.4,0.9007]
[1735832791607,0.28882,3465.6,3465.5,0.28883]
[1735832791909,0.72203,3465.8,3465.3,3.2078]
[1735832792102,0.72199,3465.9,3465.3,3.2078]
[1735832792103,0.28884,3465.4,3465.3,3.2078]
[1735832792609,0.28884,3465.4,3465.3,3.49664]
[1735832792908,0.28884,3465.4,3465.3,3.2078]
[1735832793604,3.92986,3465.6,3464.9,7.98288193]
[1735832793799,0.28887,3465.0,3464.9,7.98288193]
[1735832794209,0.28887,3465.0,3464.9,6.79331193]
[1735832795500,2.45410831,3465.4,3464.7,3.2078]
[1735832795702,0.2889,3464.6,3464.5,6.79331193]
[1735832795906,3.4967,3464.6,3464.5,6.79331193]
[1735832796301,5.95080831,3464.6,3464.5,6.79331193]
[1735832796508,5.95080831,3464.6,3464.3,9.08132875]
[1735832796509,10.66190831,3464.6,3464.3,6.51731786]
[1735832796803,0.28892,3464.4,3464.3,1.32060786]
[1735832797011,0.28895,3464.0,3463.9,6.7998877]
[1735832797202,7.28885831,3464.0,3463.9,6.7998877]
[1735832797402,12.28885831,3464.0,3463.9,6.7998877]
[1735832798111,12.28885831,3464.0,3463.9,2.16448228]
[1735832798411,12.28885831,3464.0,3463.9,0.6953]
[1735832798710,12.28885831,3464.0,3462.8,3.2078]
[1735832798711,0.72251,3463.5,3462.8,3.2078]
[1735832798908,0.28904,3462.9,3462.8,3.2078]
[1735832799305,3.2078,3463.3,3462.8,3.2078]
[1735832799505,0.72241,3463.9,3462.8,5.66190831]
[1735832799506,3.2078,3463.7,3462.8,5.66190831]
[1735832799711,0.28901,3463.4,3463.1,0.28902]
[1735832799905,0.28901,3463.4,3463.0,0.28903]
[1735832800111,0.28901,3463.4,3463.1,0.28902]
[1735832800417,0.28901,3463.3,3463.0,0.28903]
[1735832801307,3.2078,3463.7,3462.8,5.66190831]
[1735832801610,0.28902,3463.3,3463.0,0.28903]
[1735832801914,0.28903,3463.2,3462.9,0.28904]
[1735832802307,0.28903,3463.1,3462.8,3.49685]
[1735832802614,0.95419365,3463.9,3462.8,3.2078]
[1735832802615,0.28904,3462.9,3462.8,3.2078]
[1735832802915,0.28904,3463.0,3462.7,0.28906]
[1735832803114,3.2078,3463.3,3462.6,1.7024]
[1735832803411,0.28905,3462.8,3462.6,1.7024]
[1735832803613,0.28906,3462.7,3462.6,0.8564]
[1735832803811,0.28905,3462.9,3462.6,0.8564]
[1735832804110,3.2078,3463.3,3462.6,0.8564]
[1735832804111,0.28906,3462.7,3462.6,0.8564]
[1735832805106,0.28906,3462.7,3462.0,3.31950831]
[1735832805308,0.28914,3461.7,3461.6,0.9228]
[1735832805507,0.28915,3461.6,3461.0,0.8974]
[1735832805715,0.2892,3461.1,3461.0,0.8974]
[1735832806107,0.28919,3461.2,3461.0,0.8974]
[1735832806314,3.2078,3462.0,3461.0,0.8974]
[1735832806609,0.28917,3461.5,3461.1,0.28919]
[1735832807508,2.45410831,3461.8,3461.0,0.8974]
[1735832807715,3.2078,3461.6,3461.0,0.8974]
[1735832808208,0.2892,3461.1,3461.0,0.8974]
[1735832812119,3.2078,3461.2,3460.2,1.21347]